fUSD/lending_fUSD_20250904
["ID","MTS","AMOUNT","RATE_DAILY","PERIOD"]
[383480068,1756955476966,-400.0,0.00022465,2]
[383480069,1756955476974,-400.0,0.00022465,2]
[383480070,1756955476983,-403.47381747,0.00022465,2]
[383480071,1756955476992,-400.0,0.00022465,2]
[383480072,1756955477002,-400.0,0.00022465,2]
[383480073,1756955477011,-400.0,0.00022465,2]
[383480074,1756955477021,-400.0,0.00022465,2]
[383480075,1756955477030,-1000.0,0.00022465,2]
[383480076,1756955477040,-403.5902008,0.00022465,2]
[383480077,1756955477049,-400.0,0.00022465,2]
[383480078,1756955477059,-400.0,0.00022465,2]
[383480079,1756955477069,-400.0,0.00022465,2]
[383480080,1756955477078,-400.0,0.00022465,2]
[383480081,1756955477087,-407.92738523,0.00022465,2]
[383480082,1756955477096,-400.0,0.00022465,2]
[383480083,1756955477105,-400.0,0.00022465,2]
[383480084,1756955477114,-404.19717994,0.00022465,2]
[383480085,1756955477123,-369.77772297,0.00022465,2]
[383480086,1756955477132,-400.0,0.00022465,2]
[383480087,1756955477141,-400.0,0.00022465,2]
[383480088,1756955477150,-400.0,0.00022465,2]
[383480089,1756955477160,-400.0,0.00022465,2]
[383480090,1756955477169,-400.0,0.00022465,2]
[383480091,1756955477178,-400.0,0.00022465,2]
[383480092,1756955477187,-400.0,0.00022465,2]
[383480093,1756955477196,-400.0,0.00022465,2]
[383480094,1756955477205,-400.0,0.00022465,2]
[383480095,1756955477215,-400.0,0.00022465,2]
[383480096,1756955477226,-400.0,0.00022465,2]
[383480097,1756955477235,-400.0,0.00022465,2]
[383480098,1756955477244,-400.0,0.00022465,2]
[383480099,1756955477253,-403.13719245,0.00022465,2]
[383480100,1756955477263,-410.02302958,0.00022465,2]
[383480101,1756955477272,-400.0,0.00022465,2]
[383480102,1756955477281,-400.0,0.00022465,2]
[383480103,1756955477290,-400.0,0.00022465,2]
[383480104,1756955477299,-400.0,0.00022465,2]
[383480105,1756955477308,-400.0,0.00022465,2]
[383480106,1756955477318,-400.3100714,0.00022465,2]
[383480107,1756955477327,-400.0,0.00022465,2]
[383480108,1756955477336,-400.0,0.00022465,2]
[383480109,1756955477346,-400.0,0.00022465,2]
[383480110,1756955477357,-400.0,0.00022465,2]
[383480111,1756955477367,-400.0,0.00022465,2]
[383480112,1756955477376,-400.0,0.00022465,2]
[383480113,1756955477385,-400.0,0.00022465,2]
[383480114,1756955477394,-400.0,0.00022465,2]
[383480115,1756955477407,-308.97452133,0.00022465,2]
[383480116,1756955477416,-400.0,0.00022465,2]
[383480117,1756955477427,-400.0,0.00022465,2]
[383480118,1756955477437,-400.0,0.00022465,2]
[383480119,1756955477447,-400.0,0.00022465,2]
[383480120,1756955477457,-404.5938038,0.00022465,2]
[383480121,1756955477468,-400.0,0.00022465,2]
[383480122,1756955477477,-402.81255986,0.00022465,2]
[383480123,1756955477486,-400.0,0.00022465,2]
[383480124,1756955477495,-400.0,0.00022465,2]
[383480125,1756955477504,-405.1283833,0.00022465,2]
[383480126,1756955477513,-400.0,0.00022465,2]
[383480127,1756955477524,-400.0,0.00022465,2]
[383480128,1756955477534,-405.21909969,0.00022465,2]
[383480129,1756955477544,-400.0,0.00022465,2]
[383480130,1756955477554,-373.43004514,0.00022465,2]
[383480131,1756955477564,-406.34694436,0.00022465,2]
[383480132,1756955477574,-400.0,0.00022465,2]
[383480133,1756955477586,-400.0,0.00022465,2]
[383480134,1756955477596,-400.0,0.00022465,2]
[383480135,1756955477606,-400.0,0.00022465,2]
[383480136,1756955477616,-401.88,0.00022465,2]
[383480137,1756955477626,-400.0,0.00022465,2]
[383480138,1756955477636,-400.0,0.00022465,2]
[383480139,1756955477647,-400.0,0.00022465,2]
[383480140,1756955477661,-400.0,0.00022465,2]
[383480141,1756955477670,-400.0,0.00022465,2]
[383480142,1756955477679,-400.0,0.00022465,2]
[383480143,1756955477688,-400.0,0.00022465,2]
[383480144,1756955477698,-400.0,0.00022465,2]
[383480145,1756955477707,-400.0,0.00022465,2]
[383480146,1756955477716,-505.58361984,0.00022465,2]
[383480147,1756955477725,-400.0,0.00022465,2]
[383480148,1756955477735,-400.0,0.00022465,2]
[383480149,1756955477744,-400.0,0.00022465,2]
[383480150,1756955477753,-400.0,0.00022465,2]
[383480151,1756955477763,-405.80405413,0.00022465,2]
[383480152,1756955477775,-400.0,0.00022465,2]
[383480153,1756955477787,-405.26511319,0.00022465,2]
[383480154,1756955477797,-400.0,0.00022465,2]
[383480155,1756955477807,-412.49,0.00022465,2]
[383480156,1756955477816,-407.92035596,0.00022465,2]
[383480157,1756955477826,-400.0,0.00022465,2]
[383480158,1756955477836,-407.25933087,0.00022465,2]
[383480159,1756955477846,-420.93,0.00022465,2]
[383480160,1756955477858,-400.0,0.00022465,2]
[383480161,1756955477867,-400.0,0.00022465,2]
[383480162,1756955477876,-400.0,0.00022465,2]
[383480163,1756955477886,-400.0,0.00022465,2]
[383480164,1756955477895,-400.0,0.00022465,2]
[383480165,1756955477904,-400.0,0.00022465,2]
[383480166,1756955477914,-400.0,0.00022465,2]
[383480167,1756955477923,-400.0,0.00022465,2]
[383480168,1756955477932,-400.0,0.00022465,2]
[383480169,1756955477942,-400.0,0.00022465,2]
[383480170,1756955477951,-400.0,0.00022465,2]
[383480171,1756955477961,-400.0,0.00022465,2]
[383480172,1756955477970,-400.0,0.00022465,2]
[383480173,1756955477979,-401.54162405,0.00022465,2]
[383480174,1756955477988,-405.18894475,0.00022465,2]
[383480175,1756955477998,-400.0,0.00022465,2]
[383480176,1756955478007,-400.0,0.00022465,2]
[383480177,1756955478016,-406.76768958,0.00022465,2]
[383480178,1756955478026,-400.0,0.00022465,2]
[383480179,1756955478036,-439.83,0.00022465,2]
[383480180,1756955478046,-400.0,0.00022465,2]
[383480181,1756955478055,-400.0,0.00022465,2]
[383480182,1756955478065,-400.0,0.00022465,2]
[383480183,1756955478074,-400.0,0.00022465,2]
[383480184,1756955478084,-400.0,0.00022465,2]
[383480185,1756955478094,-400.0,0.00022465,2]
[383480186,1756955478103,-1000.0,0.00022465,2]
[383480187,1756955478113,-400.0,0.00022465,2]
[383480188,1756955478123,-400.0,0.00022465,2]
[383480189,1756955478132,-400.0,0.00022465,2]
[383480190,1756955478142,-403.28762966,0.00022465,2]
[383480191,1756955478152,-444.39,0.00022465,2]
[383480192,1756955478161,-400.0,0.00022465,2]
[383480193,1756955478171,-406.71861014,0.00022465,2]
[383480194,1756955478180,-684.19,0.00022465,2]
[383480195,1756955478190,-400.0,0.00022465,2]
[383480196,1756955478199,-400.0,0.00022465,2]
[383480197,1756955478209,-400.0,0.00022465,2]
[383480198,1756955478218,-400.0,0.00022465,2]
[383480199,1756955478228,-400.0,0.00022465,2]
[383480200,1756955478238,-400.0,0.00022465,2]
[383480201,1756955478248,-400.0,0.00022465,2]
[383480202,1756955478258,-400.0,0.00022465,2]
[383480203,1756955478268,-400.0,0.00022465,2]
[383480204,1756955478277,-3053.61,0.00022465,2]
[383480205,1756955478286,-400.0,0.00022465,2]
[383480206,1756955478296,-817.47,0.00022465,2]
[383480207,1756955478306,-400.0,0.00022465,2]
[383480208,1756955478316,-400.0,0.00022465,2]
[383480209,1756955478325,-400.0,0.00022465,2]
[383480210,1756955478335,-400.0,0.00022465,2]
[383480211,1756955478344,-400.0,0.00022465,2]
[383480212,1756955478353,-407.13093489,0.00022465,2]
[383480213,1756955478363,-898.38,0.00022465,2]
[383480214,1756955478372,-400.0,0.00022465,2]
[383480215,1756955478381,-400.0,0.00022465,2]
[383480216,1756955478391,-462.22,0.00022465,2]
[383480217,1756955478401,-471.41,0.00022465,2]
[383480218,1756955478410,-400.0,0.00022465,2]
[383480219,1756955478419,-400.0,0.00022465,2]
[383480220,1756955478429,-400.0,0.00022465,2]
[383480221,1756955478439,-400.0,0.00022465,2]
[383480222,1756955478448,-400.0,0.00022465,2]
[383480223,1756955478457,-402.63303176,0.00022465,2]
[383480224,1756955478467,-405.37287657,0.00022465,2]
[383480225,1756955478477,-410.57436004,0.00022465,2]
[383480226,1756955478486,-400.0,0.00022465,2]
[383480227,1756955478495,-403.45384763,0.00022465,2]
[383480228,1756955478505,-400.0,0.00022465,2]
[383480229,1756955478515,-400.0,0.00022465,2]
[383480230,1756955478524,-400.0,0.00022465,2]
[383480231,1756955478534,-400.0,0.00022465,2]
[383480232,1756955478543,-400.0,0.00022465,2]
[383480233,1756955478553,-400.0,0.00022465,2]
[383480234,1756955478564,-400.0,0.00022465,2]
[383480235,1756955478573,-400.0,0.00022465,2]
[383480236,1756955478583,-400.0,0.00022465,2]
[383480237,1756955478593,-400.0,0.00022465,2]
[383480238,1756955478603,-400.0,0.00022465,2]
[383480239,1756955478612,-412.0,0.00022465,2]
[383480240,1756955478622,-400.0,0.00022465,2]
[383480241,1756955478632,-400.0,0.00022465,2]
[383480242,1756955478642,-400.0,0.00022465,2]
[383480243,1756955478652,-400.0,0.00022465,2]
[383480244,1756955478664,-400.0,0.00022465,2]
[383480245,1756955478673,-400.0,0.00022465,2]
[383480246,1756955478682,-400.0,0.00022465,2]
[383480247,1756955478691,-400.0,0.00022465,2]
[383480248,1756955478702,-400.0,0.00022465,2]
[383480249,1756955478712,-400.0,0.00022465,2]
[383480250,1756955478721,-400.0,0.00022465,2]
[383480251,1756955478731,-400.0,0.00022465,2]
[383480252,1756955478741,-400.0,0.00022465,2]
[383480253,1756955478751,-400.0,0.00022465,2]
[383480254,1756955478761,-408.84523861,0.00022465,2]
[383480255,1756955478771,-400.0,0.00022465,2]
[383480256,1756955478781,-400.0,0.00022465,2]
[383480257,1756955478791,-400.0,0.00022465,2]
[383480258,1756955478801,-404.64509131,0.00022465,2]
[383480259,1756955478811,-419.01,0.00022465,2]
[383480260,1756955478821,-400.0,0.00022465,2]
[383480261,1756955478831,-400.0,0.00022465,2]
[383480262,1756955478840,-400.0,0.00022465,2]
[383480263,1756955478850,-400.0,0.00022465,2]
[383480264,1756955478860,-177.75857428,0.00022465,2]
[383480265,1756955478870,-400.0,0.00022465,2]
[383480266,1756955478879,-410.41396924,0.00022465,2]
[383480267,1756955478888,-400.0,0.00022465,2]
[383480268,1756955478898,-453.54,0.00022465,2]
[383480269,1756955478908,-400.0,0.00022465,2]
[383480270,1756955478918,-404.24040228,0.00022465,2]
[383480271,1756955478928,-400.0,0.00022465,2]
[383480272,1756955478938,-400.0,0.00022465,2]
[383480273,1756955478947,-408.02,0.00022465,2]
[383480274,1756955478957,-479.98793923,0.00022465,2]
[383480275,1756955478967,-400.0,0.00022465,2]
[383480276,1756955478976,-400.0,0.00022465,2]
[383480277,1756955478986,-400.0,0.00022465,2]
[383480278,1756955478995,-400.0,0.00022465,2]
[383480279,1756955479005,-400.0,0.00022465,2]
[383480280,1756955479015,-890.92,0.00022465,2]
[383480281,1756955479025,-400.0,0.00022465,2]
[383480282,1756955479035,-400.0,0.00022465,2]
[383480283,1756955479044,-400.0,0.00022465,2]
[383480284,1756955479053,-465.47,0.00022465,2]
[383480285,1756955479063,-400.0,0.00022465,2]
[383480286,1756955479073,-403.86295577,0.00022465,2]
[383480287,1756955479083,-1455.4,0.00022465,2]
[383480288,1756955479092,-400.0,0.00022465,2]
[383480289,1756955479102,-408.21541554,0.00022465,2]
[383480290,1756955479112,-400.0,0.00022465,2]
[383480291,1756955479122,-400.0,0.00022465,2]
[383480292,1756955479132,-400.0,0.00022465,2]
[383480293,1756955479142,-464.73,0.00022465,2]
[383480294,1756955479151,-400.0,0.00022465,2]
[383480295,1756955479160,-400.0,0.00022465,2]
[383480296,1756955479169,-400.0,0.00022465,2]
[383480297,1756955479179,-500.0,0.00022465,2]
[383480298,1756955479188,-482.58,0.00022465,2]
[383480299,1756955479198,-400.0,0.00022465,2]
[383480300,1756955479208,-400.0,0.00022465,2]
[383480301,1756955479217,-400.0,0.00022465,2]
[383480302,1756955479295,-400.0,0.00022465,2]
[383480303,1756955479304,-400.0,0.00022465,2]
[383480304,1756955479315,-400.0,0.00022465,2]
[383480305,1756955479325,-400.0,0.00022465,2]
[383480306,1756955479334,-1000.0,0.00022465,2]
[383480307,1756955479343,-400.0,0.00022465,2]
[383480308,1756955479352,-400.0,0.00022465,2]
[383480309,1756955479363,-400.0,0.00022465,2]
[383480310,1756955479372,-400.0,0.00022465,2]
[383480311,1756955479381,-520.85,0.00022465,2]
[383480312,1756955479390,-400.0,0.00022465,2]
[383480313,1756955479399,-400.0,0.00022465,2]
[383480314,1756955479410,-1943.65,0.00022465,2]
[383480315,1756955479420,-339.58160494,0.00022465,2]
[383480316,1756955479430,-449.64,0.00022465,2]
[383480317,1756955479440,-401.7425743,0.00022465,2]
[383480318,1756955479449,-400.0,0.00022465,2]
[383480319,1756955479458,-400.0,0.00022465,2]
[383480320,1756955479467,-400.0,0.00022465,2]
[383480321,1756955479476,-400.0,0.00022465,2]
[383480322,1756955479485,-400.0,0.00022465,2]
[383480323,1756955479494,-400.0,0.00022465,2]
[383480324,1756955479503,-400.0,0.00022465,2]
[383480325,1756955479512,-400.0,0.00022465,2]
[383480326,1756955479522,-400.0,0.00022465,2]
[383480327,1756955479531,-1583.04,0.00022465,2]
[383480328,1756955479540,-405.69739612,0.00022465,2]
[383480329,1756955479549,-400.0,0.00022465,2]
[383480330,1756955479559,-402.69277897,0.00022465,2]
[383480331,1756955479570,-400.0,0.00022465,2]
[383480332,1756955479579,-400.0,0.00022465,2]
[383480333,1756955479589,-403.84466226,0.00022465,2]
[383480334,1756955479598,-407.4831845,0.00022465,2]
[383480335,1756955479609,-402.83825682,0.00022465,2]
[383480336,1756955479618,-400.0,0.00022465,2]
[383480337,1756955479628,-400.0,0.00022465,2]
[383480338,1756955479639,-400.0,0.00022465,2]
[383480339,1756955479648,-400.0,0.00022465,2]
[383480340,1756955479661,-1345.88,0.00022465,2]
[383480341,1756955479671,-404.60643061,0.00022465,2]
[383480342,1756955479680,-1946.25,0.00022465,2]
[383480343,1756955479689,-400.0,0.00022465,2]
[383480344,1756955479699,-400.0,0.00022465,2]
[383480345,1756955479709,-400.0,0.00022465,2]
[383480346,1756955479719,-400.0,0.00022465,2]
[383480347,1756955479729,-400.0,0.00022465,2]
[383480348,1756955479739,-400.0,0.00022465,2]
[383480349,1756955479749,-405.5092846,0.00022465,2]
[383480350,1756955479758,-424.88,0.00022465,2]
[383480351,1756955479768,-277.45431625,0.00022465,2]
[383480352,1756955479777,-400.0,0.00022465,2]
[383480353,1756955479787,-400.0,0.00022465,2]
[383480354,1756955479795,-400.0,0.00022465,2]
[383480355,1756955479804,-630.66,0.00022465,2]
[383480356,1756955479813,-1617.94,0.00022465,2]
[383480357,1756955479826,-407.2403056,0.00022465,2]
[383480358,1756955479835,-746.86,0.00022465,2]
[383480359,1756955479845,-400.0,0.00022465,2]
[383480360,1756955479856,-400.0,0.00022465,2]
[383480361,1756955479867,-404.9183619,0.00022465,2]
[383480362,1756955479878,-400.0,0.00022465,2]
[383480363,1756955479888,-400.0,0.00022465,2]
[383480364,1756955479897,-400.0,0.00022465,2]
[383480365,1756955479907,-400.0,0.00022465,2]
[383480366,1756955479917,-400.0,0.00022465,2]
[383480367,1756955479927,-400.0,0.00022465,2]
[383480368,1756955479936,-402.80817842,0.00022465,2]
[383480369,1756955479945,-400.0,0.00022465,2]
[383480370,1756955479955,-400.0,0.00022465,2]
[383480371,1756955479964,-400.0,0.00022465,2]
[383480372,1756955479973,-400.0,0.00022465,2]
[383480373,1756955479983,-400.0,0.00022465,2]
[383480374,1756955479993,-400.0,0.00022465,2]
[383480375,1756955480003,-2805.39,0.00022465,2]
[383480376,1756955480012,-400.0,0.00022465,2]
[383480377,1756955480022,-400.0,0.00022465,2]
[383480378,1756955480032,-400.0,0.00022465,2]
[383480379,1756955480041,-400.0,0.00022465,2]
[383480380,1756955480051,-400.0,0.00022465,2]
[383480381,1756955480060,-400.0,0.00022465,2]
[383480382,1756955480072,-404.82925917,0.00022465,2]
[383480383,1756955480082,-400.0,0.00022465,2]
[383480384,1756955480092,-405.30567719,0.00022465,2]
[383480385,1756955480101,-400.0,0.00022465,2]
[383480386,1756955480111,-400.0,0.00022465,2]
[383480387,1756955480120,-2741.85,0.00022465,2]
[383480388,1756955480129,-133.92351612,0.00022465,2]
[383480389,1756955484665,-395.11830006,0.000217,2]
[383480390,1756955485306,-827.88169994,0.000217,2]
[383480391,1756955485316,-87.61592072,0.00021917,2]
[383480392,1756955485329,-412.38407928,0.00021917,2]
[383480393,1756955485339,-627.76,0.00021917,2]
[383480394,1756955485349,-790.65,0.00021917,2]
[383480395,1756955485357,-400.0,0.00021917,2]
[383480396,1756955485367,-171.47482517,0.00021917,2]
[383480397,1756955485376,-400.0,0.00021917,2]
[383480398,1756955485385,-400.0,0.00021917,2]
[383480399,1756955485395,-400.0,0.00021917,2]
[383480400,1756955485405,-500.0,0.00021999,2]
[383480401,1756955485415,-500.0,0.00022172,2]
[383480402,1756955485425,-500.0,0.0002219,2]
[383480403,1756955485436,-500.0,0.0002219,2]
[383480404,1756955485447,-400.0,0.00022191,2]
[383480405,1756955485456,-627.76,0.00022191,2]
[383480406,1756955485467,-790.65,0.00022191,2]
[383480407,1756955485476,-400.0,0.00022191,2]
[383480408,1756955485485,-400.0,0.00022191,2]
[383480409,1756955485495,-500.0,0.00022464,2]
[383480410,1756955485505,-500.0,0.00022464,2]
[383480411,1756955485515,-266.07648388,0.00022465,2]
[383480412,1756955485525,-400.0,0.00022465,2]
[383480413,1756955485534,-400.0,0.00022465,2]
[383480414,1756955485544,-400.0,0.00022465,2]
[383480415,1756955485554,-400.0,0.00022465,2]
[383480416,1756955485565,-400.0,0.00022465,2]
[383480417,1756955485577,-536.92,0.00022465,2]
[383480418,1756955485587,-477.23,0.00022465,2]
[383480419,1756955485597,-400.0,0.00022465,2]
[383480420,1756955485607,-400.0,0.00022465,2]
[383480421,1756955485616,-400.0,0.00022465,2]
[383480422,1756955485626,-402.88529794,0.00022465,2]
[383480423,1756955485635,-24.10379514,0.00022465,2]
[383480424,1756955485679,-375.89620486,0.00022465,2]
[383480425,1756955485688,-400.0,0.00022465,2]
[383480426,1756955485698,-400.0,0.00022465,2]
[383480427,1756955485707,-400.0,0.00022465,2]
[383480428,1756955485717,-400.0,0.00022465,2]
[383480429,1756955485727,-400.0,0.00022465,2]
[383480430,1756955485736,-2165.55,0.00022465,2]
[383480431,1756955485746,-400.0,0.00022465,2]
[383480432,1756955485755,-118.1272341,0.00022465,2]
[383480433,1756955494944,-291.99203452,0.00019504,2]
[383480434,1756955496936,-67.02066548,0.00019504,2]
[383480436,1756955863557,154.65,0.00013699,2]
[383480437,1756955892128,154.06,0.00010661,2]
[383480438,1756955892336,154.06,0.00011845,2]
[383480439,1756955892557,154.06,0.0001303,2]
[383480440,1756955892795,154.06,0.00014214,2]
[383480441,1756955893005,154.06,0.00015399,2]
[383480442,1756955893212,154.06,0.00016583,2]
[383480443,1756955893445,154.06,0.00017768,2]
[383480444,1756955907204,-152.2790152,0.00018952,2]
[383480447,1756956145286,-1.7809848,0.00018952,2]
[383480479,1756956388123,765.74443017,9e-05,2]
[383480488,1756956470162,4350.78455145,0.00013,2]
[383480493,1756956570452,152.26,0.00030137,120]
[383480500,1756956632105,-641.584328,0.00019701,2]
[383480501,1756956632115,-1000.0,0.000198,7]
[383480502,1756956632124,-250.0,0.0001985,2]
[383480503,1756956632134,-2000.0,0.000199,7]
[383480504,1756956632143,-397.61155316,0.000199,2]
[383480505,1756956632152,-886.60794631,0.000199,2]
[383480506,1756956632161,-4952.88157982,0.000199,2]
[383480507,1756956632171,-186.38469018,0.00019937,2]
[383480508,1756956632181,-1200.0,0.00019945,2]
[383480509,1756956632190,-714.24,0.00019946,2]
[383480510,1756956632200,-500.0,0.00019973,2]
[383480511,1756956632210,-500.55054868,0.00019973,2]
[383480512,1756956632219,-501.018615,0.00019973,2]
[383480513,1756956632231,-500.0,0.00019973,2]
[383480514,1756956632240,-504.04312602,0.00019973,2]
[383480515,1756956632249,-95.40024216,0.00019999,2]
[383480516,1756956632305,-454.08230076,0.00019999,2]
[383480517,1756956632315,-126.80085907,0.00019999,2]
[383480518,1756956632324,-500.0,0.00019999,2]
[383480519,1756956632333,-187.6703635,0.00019999,2]
[383480520,1756956632342,-178.98314911,0.00019999,2]
[383480521,1756956632352,-347.49342609,0.00019999,2]
[383480522,1756956632361,-119.85134946,0.00019999,2]
[383480523,1756956632372,-380.14865054,0.00019999,2]
[383480524,1756956632381,-500.0,0.00019999,2]
[383480525,1756956632390,-225.94501092,0.00019999,2]
[383480526,1756956632410,-274.05498908,0.00019999,2]
[383480527,1756956632419,-164.41697774,0.00019999,2]
[383480528,1756956632439,-478.36010346,0.00019999,2]
[383480529,1756956632447,-6822.04377346,0.0002,2]
[383480535,1756956637883,-587.03406236,0.00019799,2]
[383480536,1756956637893,-15410.70936113,0.0002,2]
[383480537,1756956637905,-798.3854497,0.0002,2]
[383480538,1756956637918,-761.0,0.0002,2]
[383480539,1756956638098,-6521.35764361,0.0002,2]
[383480752,1756956640256,-356.29145085,0.0002,2]
[383481053,1756956643265,-209.54928959,0.0001999,2]
[383481055,1756956643275,-31958.35187676,0.0002,2]
[383481101,1756956646366,-329.87472001,0.0002,2]
[383481105,1756956785493,2844.0,0.00030137,120]
[383481106,1756956823879,154.06,9.913e-05,2]
[383481108,1756956993128,158.76,0.00013699,2]
[383481109,1756957166716,-235.07905061,0.00018904,2]
[383481110,1756957168541,-473.07716126,0.00018904,2]
[383481111,1756957170900,-171.39445729,0.00018904,2]
[383481112,1756957172613,-212.33822564,0.00018904,2]
[383481113,1756957173130,-143.6411052,0.00018904,2]
[383481114,1756957173154,-48.72428596,0.00018975,2]
[383481115,1756957175280,-250.0,0.00018879,2]
[383481116,1756957175302,-101.27571404,0.00018975,2]
[383481117,1756957191520,-175.71847912,0.00019498,2]
[383481118,1756957277635,150.99630783,0.00030136,120]
[383481119,1756957330020,-366.62176773,0.000193,2]
[383481120,1756957337535,-93.37823227,0.000193,2]
[383481121,1756957337564,-8.01570282,0.00019498,2]
[383481122,1756957337631,-197.21212982,0.000195,2]
[383481123,1756957345092,-248.95797216,0.000195,2]
[383481124,1756957354575,-152.0,0.00018415,2]
[383481125,1756957356639,-517.90407499,0.00018415,2]
[383481126,1756957359048,-80.08975276,0.00018415,2]
[383481127,1756957359070,-80.45024724,0.00018826,2]
[383481128,1756957362284,-400.0,0.00018826,2]
[383481129,1756957362975,-159.51543229,0.00018826,2]
[383481130,1756957366079,-110.02814822,0.00018826,2]
[383481131,1756957366103,-79.75806994,0.0001914,2]
[383481132,1756957368011,-310.42378184,0.0001914,2]
[383481133,1756957370794,-40.18802403,0.0001914,2]
[383481134,1756957370822,-319.62395194,0.0001914,2]
[383481135,1756957371533,-160.42881832,0.00019267,2]
[383481136,1756957375068,-189.57621816,0.00019267,2]
[383481137,1756957378136,-0.01120873,0.00019267,2]
[383481138,1756957378160,-399.97758254,0.00019267,2]
[383481139,1756957405973,-177.55,0.00018768,2]
[383481140,1756957406021,-44.9,0.00019151,2]
[383481141,1756957407051,-238.82053117,0.00019151,2]
[383481142,1756957409306,395.20342645,0.00018,2]
[383481143,1756957411193,-170.39544138,0.00019151,2]
[383481144,1756957413059,-400.0,0.00019151,2]
[383481145,1756957414613,-201.66022329,0.00019151,2]
[383481146,1756957416795,-194.97424048,0.00019151,2]
[383481147,1756957419130,-156.94,0.00019151,2]
[383481148,1756957420070,-400.0,0.00019151,2]
[383481149,1756957421183,-157.17,0.00019151,2]
[383481150,1756957424031,-324.24215921,0.00019151,2]
[383481151,1756957427315,-174.89061945,0.00019151,2]
[383481152,1756957429100,-186.63195001,0.00019151,2]
[383481153,1756957429176,-400.0,0.00019151,2]
[383481154,1756957430852,-165.11483501,0.00019151,2]
[383481155,1756957430874,-106.94321498,0.00019178,2]
[383481156,1756957434287,-706.22474338,0.00019178,2]
[383481157,1756957436104,-400.0,0.00019178,2]
[383481158,1756957437464,-376.5940076,0.00019178,2]
[383481159,1756957440117,-300.0,0.00019178,2]
[383481161,1756957442328,-151.0,0.00019178,2]
[383481162,1756957443096,-401.1029411,0.00019178,2]
[383481163,1756957444796,-298.1179143,0.00019178,2]
[383481164,1756957447719,-396.78258451,0.00019178,2]
[383481165,1756957451077,-311.47096041,0.00019178,2]
[383481166,1756957451092,-500.0,0.00019178,2]
[383481167,1756957454024,-545.879688,0.00019082,2]
[383481168,1756957454048,-1051.76363372,0.00019178,2]
[383481169,1756957458066,-96.13907522,0.00019339,2]
[383481170,1756957458096,-189.86092478,0.00019339,2]
[383481171,1756957465887,-176.42004312,0.00019339,2]
[383481172,1756957474721,-267.86437912,0.00018775,2]
[383481173,1756957476446,-202.28,0.00018775,2]
[383481174,1756957479109,-252.69976943,0.00018775,2]
[383481175,1756957483214,-217.7696363,0.00018775,2]
[383481176,1756957483490,-500.0,0.00018775,2]
[383481177,1756957484866,-125.09621515,0.00018775,2]
[383481178,1756957494096,-345.50077398,0.00018783,2]
[383481179,1756957498257,-348.16531003,0.00018783,2]
[383481180,1756957500836,-304.3981554,0.00018783,2]
[383481181,1756957503015,-277.03934987,0.00018783,2]
[383481182,1756957504840,161.96325461,0.00018,2]
[383481183,1756957505086,-203.90513147,0.00018783,2]
[383481184,1756957505240,-411.68886544,0.00018783,2]
[383481185,1756957508566,150.0,0.00018,2]
[383481186,1756957508601,-585.4,0.00018783,2]
[383481187,1756957508749,150.0,0.000192,4]